[Event "FIDE World Cup O10-TB 2024"]
[Site "Batumi"]
[Date "2024.07.01"]
[Round "1.9"]
[White "Guntaka, Aayansh"]
[Black "Azimov, Yasin"]
[Result "1/2-1/2"]
[ECO "B90"]
[WhiteElo "1872"]
[BlackElo "1833"]
[Annotator "NA RC"]
[PlyCount "105"]
[EventDate "2024.06.23"]
[EventType "swiss"]
[EventCountry "GEO"]
[SourceTitle "playchess.com"]
[Source "ChessBase"]
[SourceQuality "1"]
[TimeControl "5400+30"]

1. e4 {[%emt 0:00:03]} c5 {[%emt 0:00:12]} 2. Nf3 {[%emt 0:00:07]} d6 {[%emt 0:00:11]} 3. d4 {[%emt 0:00:08]} cxd4 {[%emt 0:00:10]} 4. Nxd4 {[%emt 0:00:06]} Nf6 {[%emt 0:00:12]} 5. Nc3 {[%emt 0:00:04]} a6 {[%emt 0:00:10]} 6. Be3 {[%emt 0:00:04]} e5 {[%emt 0:00:06]} 7. Nf3 {[%emt 0:00:04]} Be7 {[%emt 0:00:19]} 8. Bc4 {[%emt 0:00:13]} O-O {[%emt 0:01:22]} 9. O-O {[%emt 0:00:05]} Nbd7 {[%emt 0:00:39]} 10. h3 {[%emt 0:07:45]} Qc7 {[%emt 0:02:48]} 11. Bb3 {[%emt 0:03:36]} b5 {[%emt 0:01:32]} 12. a4 {[%emt 0:05:52]} b4 {[%emt 0:03:06]} 13. Nd5 {[%emt 0:00:14]} Nxd5 {[%emt 0:00:11]} 14. Bxd5 {[%emt 0:00:13]} Rb8 {[%emt 0:00:48]} 15. a5 {[%emt 0:01:15]} Rb5 {[%emt 0:07:28]} 16. Ra4 {[%emt 0:03:02]} Bb7 {[%emt 0:01:30]} 17. Bxb7 {[%emt 0:01:46]} Qxb7 {[%emt 0:00:10]} 18. Nd2 {[%emt 0:09:35]} Nf6 {[%emt 0:06:02]} 19. Bg5 {[%emt 0:02:59]} d5 {[%emt 0:03:44]} 20. Bxf6 {[%emt 0:03:03]} Bxf6 {[%emt 0:00:08]} 21. exd5 {[%emt 0:14:08]} Rxd5 {[%emt 0:00:17]} 22. Qf3 {[%emt 0:06:57]} Qd7 {[%emt 0:00:16]} 23. Ne4 {[%emt 0:00:55]} Be7 {[%emt 0:00:07]} 24. Raa1 {[%emt 0:06:51]} f5 {[%emt 0:01:08]} 25. Ng3 {[%emt 0:00:15]} e4 {[%emt 0:01:00]} 26. Qb3 {[%emt 0:00:19]} Kh8 {[%emt 0:00:09]} 27. Rfe1 {[%emt 0:06:20]} Rd8 {[%emt 0:03:03]} 28. Ne2 {[%emt 0:09:06]} Qc7 {[%emt 0:01:05]} 29. c3 {[%emt 0:01:06]} bxc3 {[%emt 0:04:23]} 30. Nxc3 {[%emt 0:01:04]} Rxa5 {[%emt 0:03:04]} 31. Rad1 {[%emt 0:00:38]} Bd6 {[%emt 0:05:27]} 32. Nd5 {[%emt 0:01:54]} Qb8 {[%emt 0:01:26]} 33. Qxb8 {[%emt 0:02:03]} Rxb8 {[%emt 0:00:28]} 34. Ne3 {[%emt 0:01:16]} Bb4 {[%emt 0:04:20]} 35. Re2 {[%emt 0:00:08]} Rc5 {[%emt 0:01:15]} 36. Nc2 {[%emt 0:00:58]} a5 {[%emt 0:00:41]} 37. Nxb4 {[%emt 0:00:33]} axb4 {[%emt 0:00:09]} 38. Red2 {[%emt 0:00:07]} h5 {[%emt 0:01:02]} 39. Rd7 {[%emt 0:00:47]} Rcb5 {[%emt 0:01:54]} 40. Rf7 {[%emt 0:00:20]} R8b7 {[%emt 0:00:24]} 41. Rxb7 {[%emt 0:00:31]} Rxb7 {[%emt 0:00:22]} 42. Rd4 {[%emt 0:00:27]} g6 {[%emt 0:00:41]} 43. Kf1 {[%emt 0:00:22]} Kg7 {[%emt 0:03:32]} 44. f3 {[%emt 0:00:24]} exf3 {[%emt 0:01:09]} 45. gxf3 {[%emt 0:00:13]} Rb6 {[%emt 0:04:37]} 46. h4 {[%emt 0:00:32]} Kf6 {[%emt 0:01:41]} 47. b3 {[%emt 0:02:37]} Ke5 {[%emt 0:00:11]} 48. Rc4 {[%emt 0:00:07]} f4 {[%emt 0:01:29]} 49. Kf2 {[%emt 0:00:46]} Rb5 {[%emt 0:00:22]} 50. Ke2 {[%emt 0:00:15]} Kf5 {[%emt 0:01:16]} 51. Kf2 {[%emt 0:00:07]} g5 {[%emt 0:00:44]} 52. hxg5 {[%emt 0:00:12]} Kxg5 {[%emt 0:00:13]} 53. Kg2 {[%emt 0:00:09]} 1/2-1/2

[Event "FIDE World Cup O10-TB 2024"]
[Site "Batumi"]
[Date "2024.07.01"]
[Round "1.10"]
[White "Lazarev, Egor"]
[Black "Kalinichenko, German Yu"]
[Result "1-0"]
[ECO "C58"]
[WhiteElo "1683"]
[BlackElo "1634"]
[Annotator "NA RC"]
[PlyCount "51"]
[EventDate "2024.06.23"]
[EventType "swiss"]
[EventCountry "GEO"]
[SourceTitle "playchess.com"]
[Source "ChessBase"]
[SourceQuality "1"]
[TimeControl "5400+30"]

1. e4 {[%emt 0:00:05]} e5 {[%emt 0:00:23]} 2. Nf3 {[%emt 0:00:05]} Nc6 {[%emt 0:00:23]} 3. Bc4 {[%emt 0:00:22]} Nf6 {[%emt 0:00:50]} 4. Ng5 {[%emt 0:00:29]} d5 {[%emt 0:00:14]} 5. exd5 {[%emt 0:00:04]} Na5 {[%emt 0:00:07]} 6. Bb5+ {[%emt 0:00:10]} c6 {[%emt 0:00:09]} 7. dxc6 {[%emt 0:00:02]} bxc6 {[%emt 0:00:07]} 8. Bd3 {[%emt 0:00:05]} Ng4 {[%emt 0:01:11]} 9. Ne4 {[%emt 0:00:16]} f5 {[%emt 0:00:34]} 10. Be2 {[%emt 0:00:06]} fxe4 {[%emt 0:03:55]} 11. Bxg4 {[%emt 0:00:16]} Bc5 {[%emt 0:06:58]} 12. O-O {[%emt 0:12:04]} O-O {[%emt 0:02:36]} 13. Bxc8 {[%emt 0:04:01]} Rxc8 {[%emt 1:19:33]} 14. Nc3 {[%emt 0:13:10]} Qd4 {[%emt 0:00:00]} 15. Qe2 {[%emt 0:01:14]} Rf4 {[%emt 0:00:00]} 16. d3 {[%emt 0:02:33]} exd3 {[%emt 0:00:00]} 17. cxd3 {[%emt 0:00:03]} Rf5 {[%emt 0:00:00]} 18. Be3 {[%emt 0:00:18]} Qb4 {[%emt 0:00:00]} 19. a3 {[%emt 0:00:32]} Qh4 {[%emt 0:00:00]} 20. Bxc5 {[%emt 0:00:29]} Nb3 {[%emt 0:00:00]} 21. Be3 {[%emt 0:04:13]} Nxa1 {[%emt 0:00:00]} 22. Rxa1 {[%emt 0:00:02]} Rcf8 {[%emt 0:00:00]} 23. h3 {[%emt 0:01:44]} R8f6 {[%emt 0:00:00]} 24. Qg4 {[%emt 0:00:15]} Rh5 {[%emt 0:00:00]} 25. Qxh4 {[%emt 0:00:09]} Rxh4 {[%emt 0:00:00]} 26. Bg5 {[%emt 0:00:07]} 1-0

[Event "FIDE World Cup O10-TB 2024"]
[Site "Batumi"]
[Date "2024.07.01"]
[Round "1.11"]
[White "Eshkol, Idan"]
[Black "Shen, Houlin"]
[Result "0-1"]
[ECO "A01"]
[WhiteElo "1544"]
[BlackElo "1583"]
[Annotator "NA RC"]
[PlyCount "152"]
[EventDate "2024.06.23"]
[EventType "swiss"]
[EventCountry "GEO"]
[SourceTitle "playchess.com"]
[Source "ChessBase"]
[SourceQuality "1"]
[TimeControl "5400+30"]

1. b3 {[%emt 0:00:05]} e5 {[%emt 0:00:18]} 2. Bb2 {[%emt 0:00:06]} d6 {[%emt 0:02:58]} 3. e3 {[%emt 0:00:07]} Nf6 {[%emt 0:03:51]} 4. Nc3 {[%emt 0:01:04]} Be7 {[%emt 0:02:09]} 5. Nf3 {[%emt 0:03:00]} O-O {[%emt 0:06:15]} 6. Be2 {[%emt 0:05:14]} Re8 {[%emt 0:09:25]} 7. d3 {[%emt 0:04:15]} Bf8 {[%emt 0:06:03]} 8. O-O {[%emt 0:00:19]} d5 {[%emt 0:03:37]} 9. Re1 {[%emt 0:06:14]} c6 {[%emt 0:07:34]} 10. Qd2 {[%emt 0:07:37]} Bg4 {[%emt 0:04:55]} 11. Rad1 {[%emt 0:08:25]} Nbd7 {[%emt 0:03:17]} 12. h3 {[%emt 1:00:04]} Bxf3 {[%emt 0:03:03]} 13. Bxf3 {[%emt 0:00:00]} Qc7 {[%emt 0:00:07]} 14. g3 {[%emt 0:00:00]} b5 {[%emt 0:04:45]} 15. Bg2 {[%emt 0:00:00]} b4 {[%emt 0:01:25]} 16. Ne2 {[%emt 0:00:00]} a5 {[%emt 0:00:59]} 17. f4 {[%emt 0:00:00]} exf4 {[%emt 0:06:47]} 18. gxf4 {[%emt 0:00:00]} Bc5 {[%emt 0:06:35]} 19. Ng3 {[%emt 0:03:30]} Qxf4 {[%emt 0:03:14]} 20. Nf1 {[%emt 0:00:00]} Qc7 {[%emt 0:04:38]} 21. Re2 {[%emt 0:00:00]} a4 {[%emt 0:02:25]} 22. Bf3 {[%emt 0:00:00]} axb3 {[%emt 0:01:34]} 23. axb3 {[%emt 0:00:00]} Bd6 {[%emt 0:00:32]} 24. Rg2 {[%emt 0:00:00]} Be5 {[%emt 0:01:02]} 25. Bxe5 {[%emt 0:00:00]} Nxe5 {[%emt 0:01:41]} 26. Qf2 {[%emt 0:00:00]} Nxf3+ {[%emt 0:01:25]} 27. Qxf3 {[%emt 0:00:00]} Qe5 {[%emt 0:00:02]} 28. Re1 {[%emt 0:00:00]} Kh8 {[%emt 0:00:59]} 29. Ng3 {[%emt 0:00:00]} Ra1 {[%emt 0:00:57]} 30. Rxa1 {[%emt 0:00:00]} Qxa1+ {[%emt 0:00:08]} 31. Kh2 {[%emt 0:00:00]} Qe5 {[%emt 0:00:06]} 32. Re2 {[%emt 0:00:00]} h5 {[%emt 0:01:21]} 33. Kg1 {[%emt 0:00:00]} h4 {[%emt 0:02:12]} 34. Nf5 {[%emt 0:00:00]} g6 {[%emt 0:01:47]} 35. Nxh4 {[%emt 0:00:00]} Kg7 {[%emt 0:00:54]} 36. Rg2 {[%emt 0:00:00]} Kh7 {[%emt 0:01:37]} 37. Rf2 {[%emt 0:00:00]} Kg7 {[%emt 0:00:53]} 38. Ng2 {[%emt 0:00:00]} Re7 {[%emt 0:01:11]} 39. Re2 {[%emt 0:10:00]} Nh5 {[%emt 0:00:44]} 40. Kf2 {[%emt 0:00:00]} Re6 {[%emt 0:00:31]} 41. Kg1 {[%emt 0:00:00]} Ng3 {[%emt 0:02:12]} 42. Rf2 {[%emt 0:00:00]} Nf5 {[%emt 0:00:17]} 43. Nf4 {[%emt 0:00:00]} Re7 {[%emt 0:00:48]} 44. Re2 {[%emt 0:00:11]} Nxe3 {[%emt 0:03:01]} 45. Ng2 {[%emt 0:01:07]} d4 {[%emt 0:00:29]} 46. Qxc6 {[%emt 0:01:25]} Rc7 {[%emt 0:01:17]} 47. Qb6 {[%emt 0:00:40]} Rxc2 {[%emt 0:00:37]} 48. Rxc2 {[%emt 0:00:24]} Nxc2 {[%emt 0:00:08]} 49. Qc6 {[%emt 0:00:38]} Ne3 {[%emt 0:00:49]} 50. Qf3 {[%emt 0:00:29]} Qg5 {[%emt 0:00:13]} 51. Qf2 {[%emt 0:00:31]} f5 {[%emt 0:00:32]} 52. Qb2 {[%emt 0:00:14]} Qxg2+ {[%emt 0:00:18]} 53. Qxg2 {[%emt 0:00:08]} Nxg2 {[%emt 0:00:10]} 54. Kxg2 {[%emt 0:00:04]} Kh6 {[%emt 0:00:28]} 55. h4 {[%emt 0:00:27]} Kh5 {[%emt 0:00:22]} 56. Kf3 {[%emt 0:00:42]} Kxh4 {[%emt 0:00:07]} 57. Kf4 {[%emt 0:00:06]} g5+ {[%emt 0:00:11]} 58. Kxf5 {[%emt 0:00:06]} g4 {[%emt 0:00:08]} 59. Ke4 {[%emt 0:00:09]} g3 {[%emt 0:00:06]} 60. Kxd4 {[%emt 0:00:05]} g2 {[%emt 0:00:08]} 61. Kc4 {[%emt 0:00:07]} g1=Q {[%emt 0:00:09]} 62. Kxb4 {[%emt 0:00:08]} Qd4+ {[%emt 0:00:16]} 63. Ka5 {[%emt 0:00:08]} Qxd3 {[%emt 0:00:10]} 64. b4 {[%emt 0:00:06]} Qd8+ {[%emt 0:00:14]} 65. Ka6 {[%emt 0:00:08]} Qb8 {[%emt 0:00:07]} 66. b5 {[%emt 0:00:11]} Kg5 {[%emt 0:00:08]} 67. b6 {[%emt 0:00:11]} Kf6 {[%emt 0:00:08]} 68. Kb5 {[%emt 0:00:10]} Ke5 {[%emt 0:00:14]} 69. Kc6 {[%emt 0:00:07]} Qc8+ {[%emt 0:00:36]} 70. Kb5 {[%emt 0:00:08]} Kd5 {[%emt 0:00:22]} 71. Ka5 {[%emt 0:00:17]} Kc4 {[%emt 0:01:02]} 72. b7 {[%emt 0:00:08]} Qb8 {[%emt 0:00:12]} 73. Kb6 {[%emt 0:00:22]} Kd5 {[%emt 0:00:08]} 74. Ka6 {[%emt 0:00:35]} Kc5 {[%emt 0:00:08]} 75. Ka5 {[%emt 0:00:07]} Qxb7 {[%emt 0:00:10]} 76. Ka4 {[%emt 0:00:08]} Qb4# {[%emt 0:00:06]} 0-1

[Event "FIDE World Cup O10-TB 2024"]
[Site "Batumi"]
[Date "2024.07.01"]
[Round "1.12"]
[White "Akramov, Khasan"]
[Black "Hummatov, Safa"]
[Result "1-0"]
[ECO "A34"]
[WhiteElo "1718"]
[BlackElo "1693"]
[Annotator "NA RC"]
[PlyCount "85"]
[EventDate "2024.06.23"]
[EventType "swiss"]
[EventCountry "GEO"]
[SourceTitle "playchess.com"]
[Source "ChessBase"]
[SourceQuality "1"]
[TimeControl "5400+30"]

1. c4 {[%emt 0:00:04]} c5 {[%emt 0:00:17]} 2. g3 {[%emt 0:00:05]} Nf6 {[%emt 0:00:05]} 3. Bg2 {[%emt 0:00:07]} d5 {[%emt 0:00:07]} 4. cxd5 {[%emt 0:00:30]} Nxd5 {[%emt 0:00:48]} 5. Nc3 {[%emt 0:00:19]} Nc7 {[%emt 0:00:07]} 6. a3 {[%emt 0:00:29]} Nc6 {[%emt 1:32:06]} 7. b4 {[%emt 0:01:41]} cxb4 {[%emt 0:00:00]} 8. axb4 {[%emt 0:00:09]} Nxb4 {[%emt 0:00:00]} 9. Ba3 {[%emt 0:05:35]} Nbd5 {[%emt 0:00:00]} 10. Nxd5 {[%emt 0:02:01]} Nxd5 {[%emt 0:00:00]} 11. Nf3 {[%emt 0:00:12]} e6 {[%emt 0:00:00]} 12. Bxf8 {[%emt 0:00:25]} Kxf8 {[%emt 0:00:00]} 13. O-O {[%emt 1:25:23]} g6 {[%emt 0:00:00]} 14. e4 {[%emt 0:00:30]} Nf6 {[%emt 0:00:00]} 15. Re1 {[%emt 0:00:00]} Kg7 {[%emt 0:00:00]} 16. e5 {[%emt 0:00:00]} Nd5 {[%emt 0:05:00]} 17. d4 {[%emt 0:00:00]} Bd7 {[%emt 0:00:00]} 18. Nd2 {[%emt 0:00:00]} Bc6 {[%emt 0:00:00]} 19. Ne4 {[%emt 0:00:00]} Ne7 {[%emt 0:00:00]} 20. Nd6 {[%emt 0:00:00]} Nf5 {[%emt 0:00:00]} 21. d5 {[%emt 0:00:00]} Bxd5 {[%emt 0:00:00]} 22. Bxd5 {[%emt 0:00:00]} Nxd6 {[%emt 0:00:00]} 23. exd6 {[%emt 0:00:00]} exd5 {[%emt 0:00:00]} 24. Qxd5 {[%emt 0:00:00]} Qf6 {[%emt 0:00:00]} 25. Ra4 {[%emt 0:00:00]} Rad8 {[%emt 0:00:00]} 26. Rf4 {[%emt 0:00:00]} Rxd6 {[%emt 0:00:00]} 27. Qxb7 {[%emt 0:00:00]} Rb6 {[%emt 0:00:00]} 28. Qxa7 {[%emt 0:00:00]} Ra6 {[%emt 0:00:00]} 29. Qb7 {[%emt 0:00:00]} Rb6 {[%emt 0:00:00]} 30. Qf3 {[%emt 0:00:00]} Qd6 {[%emt 0:00:00]} 31. Rxf7+ {[%emt 0:00:00]} Kh6 {[%emt 0:00:00]} 32. Qg4 {[%emt 0:00:00]} Rb5 {[%emt 0:00:00]} 33. h4 {[%emt 0:00:00]} Rf8 {[%emt 0:00:00]} 34. Rxf8 {[%emt 0:00:00]} Qxf8 {[%emt 0:00:00]} 35. Qd7 {[%emt 0:00:00]} Rb2 {[%emt 0:00:00]} 36. Qa7 {[%emt 0:00:00]} Qf3 {[%emt 0:01:06]} 37. Qc5 {[%emt 0:00:00]} Qf6 {[%emt 0:03:36]} 38. Qe3+ {[%emt 0:00:00]} Kg7 {[%emt 0:00:39]} 39. Qa7+ {[%emt 0:00:00]} Kf8 {[%emt 0:01:40]} 40. Re4 {[%emt 0:00:00]} Rb1+ {[%emt 0:00:49]} 41. Kh2 {[%emt 0:00:00]} Ra1 {[%emt 0:02:41]} 42. Qb8+ {[%emt 0:00:00]} Kg7 {[%emt 0:00:26]} 43. Rf4 {[%emt 0:00:00]} 1-0

[Event "FIDE World Cup O10-TB 2024"]
[Site "Batumi"]
[Date "2024.07.01"]
[Round "1.14"]
[White "Bergmann, Rafael Antonio"]
[Black "Jakhaia, Andria"]
[Result "1-0"]
[ECO "B45"]
[WhiteElo "1743"]
[BlackElo "1652"]
[Annotator "NA RC"]
[PlyCount "65"]
[EventDate "2024.06.23"]
[EventType "swiss"]
[EventCountry "GEO"]
[SourceTitle "playchess.com"]
[Source "ChessBase"]
[SourceQuality "1"]
[TimeControl "5400+30"]

1. e4 {[%emt 0:00:03]} c5 {[%emt 0:00:30]} 2. Nf3 {[%emt 0:00:04]} Nc6 {[%emt 0:00:07]} 3. d4 {[%emt 0:00:10]} cxd4 {[%emt 0:00:15]} 4. Nxd4 {[%emt 0:00:07]} e6 {[%emt 0:00:19]} 5. Nc3 {[%emt 0:00:06]} Nf6 {[%emt 0:00:06]} 6. Ndb5 {[%emt 0:00:10]} Bb4 {[%emt 0:00:29]} 7. a3 {[%emt 0:00:05]} Bxc3+ {[%emt 0:00:08]} 8. Nxc3 {[%emt 0:00:08]} d5 {[%emt 0:00:08]} 9. exd5 {[%emt 0:00:05]} exd5 {[%emt 0:00:09]} 10. Bd3 {[%emt 0:00:10]} O-O {[%emt 0:00:09]} 11. O-O {[%emt 0:00:11]} d4 {[%emt 0:00:03]} 12. Ne2 {[%emt 0:00:13]} Bg4 {[%emt 0:00:06]} 13. f3 {[%emt 0:00:20]} Bh5 {[%emt 0:00:06]} 14. b4 {[%emt 0:13:14]} Qb6 {[%emt 0:04:34]} 15. Kh1 {[%emt 0:00:33]} Rfd8 {[%emt 0:01:00]} 16. Nf4 {[%emt 0:00:41]} Bg6 {[%emt 0:00:21]} 17. Nxg6 {[%emt 0:00:08]} hxg6 {[%emt 0:00:07]} 18. Bb2 {[%emt 0:00:27]} Nd5 {[%emt 0:01:15]} 19. Qd2 {[%emt 0:07:32]} Rac8 {[%emt 0:08:03]} 20. Rfe1 {[%emt 0:03:51]} Re8 {[%emt 0:09:59]} 21. Be4 {[%emt 0:03:28]} Rcd8 {[%emt 0:04:09]} 22. Bxd5 {[%emt 0:02:30]} Rxe1+ {[%emt 0:00:19]} 23. Qxe1 {[%emt 0:00:42]} Rxd5 {[%emt 0:00:26]} 24. Qe8+ {[%emt 0:00:12]} Kh7 {[%emt 0:00:09]} 25. Qxf7 {[%emt 0:00:13]} Re5 {[%emt 0:18:23]} 26. Qc4 {[%emt 0:02:43]} Re3 {[%emt 0:26:35]} 27. Rg1 {[%emt 0:12:46]} a6 {[%emt 0:02:34]} 28. Rd1 {[%emt 0:09:47]} Qd8 {[%emt 0:20:46]} 29. Bc1 {[%emt 0:07:19]} Ne5 {[%emt 0:02:26]} 30. Qe6 {[%emt 0:01:47]} Re2 {[%emt 0:01:17]} 31. Bf4 {[%emt 0:04:27]} Qh4 {[%emt 0:00:31]} 32. Bg3 {[%emt 0:00:29]} Qg5 {[%emt 0:00:30]} 33. f4 {[%emt 0:01:21]} 1-0

[Event "FIDE World Cup O10-TB 2024"]
[Site "Batumi"]
[Date "2024.07.01"]
[Round "1.15"]
[White "Macosay Lopez, Julio David"]
[Black "Xia, Joshua"]
[Result "0-1"]
[ECO "B21"]
[WhiteElo "1607"]
[BlackElo "2060"]
[Annotator "NA RC"]
[PlyCount "122"]
[EventDate "2024.06.23"]
[EventType "swiss"]
[EventCountry "GEO"]
[SourceTitle "playchess.com"]
[Source "ChessBase"]
[SourceQuality "1"]
[TimeControl "5400+30"]

1. e4 {[%emt 0:00:25]} c5 {[%emt 0:00:15]} 2. d4 {[%emt 0:00:51]} cxd4 {[%emt 0:00:10]} 3. c3 {[%emt 0:00:31]} dxc3 {[%emt 0:00:11]} 4. Nxc3 {[%emt 0:00:18]} Nc6 {[%emt 0:00:55]} 5. Nf3 {[%emt 0:00:33]} d6 {[%emt 0:01:44]} 6. Bc4 {[%emt 0:00:54]} a6 {[%emt 0:01:22]} 7. e5 {[%emt 0:03:29]} dxe5 {[%emt 0:04:40]} 8. Qxd8+ {[%emt 0:00:21]} Nxd8 {[%emt 0:00:07]} 9. Nxe5 {[%emt 0:01:30]} e6 {[%emt 0:01:21]} 10. Be3 {[%emt 0:04:21]} Bd6 {[%emt 0:01:06]} 11. Bd4 {[%emt 0:16:27]} Nf6 {[%emt 0:02:33]} 12. O-O-O {[%emt 0:09:30]} O-O {[%emt 0:02:45]} 13. h3 {[%emt 0:05:14]} b5 {[%emt 1:19:51]} 14. Bb3 {[%emt 0:02:11]} Bb7 {[%emt 0:00:00]} 15. Rhg1 {[%emt 0:01:40]} Rc8 {[%emt 0:00:00]} 16. Kb1 {[%emt 0:00:58]} Be7 {[%emt 0:00:00]} 17. g4 {[%emt 0:07:39]} Nc6 {[%emt 0:00:00]} 18. Nxc6 {[%emt 0:05:30]} Bxc6 {[%emt 0:00:00]} 19. g5 {[%emt 0:00:39]} Ne4 {[%emt 0:00:00]} 20. h4 {[%emt 0:03:59]} Nxc3+ {[%emt 0:00:00]} 21. Bxc3 {[%emt 0:00:41]} Bf3 {[%emt 0:00:00]} 22. Rd7 {[%emt 0:04:48]} Bc5 {[%emt 0:00:00]} 23. Bxe6 {[%emt 0:06:19]} b4 {[%emt 0:00:00]} 24. Be5 {[%emt 0:00:05]} Be4+ {[%emt 0:00:00]} 25. Ka1 {[%emt 0:00:17]} Rce8 {[%emt 0:00:00]} 26. Rc1 {[%emt 0:02:19]} Bxf2 {[%emt 0:00:00]} 27. Bd6 {[%emt 0:00:14]} fxe6 {[%emt 0:00:00]} 28. Bxf8 {[%emt 0:00:43]} Rxf8 {[%emt 0:00:00]} 29. a3 {[%emt 0:01:09]} bxa3 {[%emt 0:00:00]} 30. bxa3 {[%emt 0:00:11]} Bd5 {[%emt 0:00:00]} 31. Kb2 {[%emt 0:03:28]} Bd4+ {[%emt 0:00:00]} 32. Kb1 {[%emt 0:00:29]} Rb8+ {[%emt 0:00:00]} 33. Kc2 {[%emt 0:00:11]} Rc8+ {[%emt 0:00:00]} 34. Kd1 {[%emt 0:00:54]} Bb3+ {[%emt 0:00:00]} 35. Kd2 {[%emt 0:00:23]} Be3+ {[%emt 0:00:00]} 36. Kxe3 {[%emt 0:00:07]} Rxc1 {[%emt 0:00:00]} 37. Rd8+ {[%emt 0:03:36]} Kf7 {[%emt 0:00:00]} 38. Rd7+ {[%emt 0:00:05]} Kf8 {[%emt 0:00:00]} 39. Rd8+ {[%emt 0:00:13]} Kf7 {[%emt 0:00:00]} 40. Rd7+ {[%emt 0:00:23]} Kg6 {[%emt 0:00:00]} 41. h5+ {[%emt 0:17:25]} Kxg5 {[%emt 0:00:00]} 42. Rxg7+ {[%emt 0:00:00]} Kxh5 {[%emt 0:00:00]} 43. Rxh7+ {[%emt 0:00:00]} Kg6 {[%emt 0:00:00]} 44. Ra7 {[%emt 0:00:00]} Rc6 {[%emt 0:00:00]} 45. Kd3 {[%emt 0:00:00]} Kf5 {[%emt 0:00:00]} 46. Rf7+ {[%emt 0:00:00]} Ke5 {[%emt 0:00:00]} 47. Rb7 {[%emt 0:00:00]} Ba4 {[%emt 0:00:00]} 48. Rb4 {[%emt 0:00:00]} Bb5+ {[%emt 0:00:00]} 49. Kd2 {[%emt 0:00:00]} Rc4 {[%emt 0:00:00]} 50. Rb3 {[%emt 0:00:00]} Kd5 {[%emt 0:00:00]} 51. Rh3 {[%emt 0:00:00]} Rd4+ {[%emt 0:00:00]} 52. Kc3 {[%emt 0:00:00]} Rd3+ {[%emt 0:00:00]} 53. Rxd3+ {[%emt 0:00:00]} Bxd3 {[%emt 0:00:00]} 54. Kxd3 {[%emt 0:00:00]} e5 {[%emt 0:00:00]} 55. a4 {[%emt 0:00:00]} a5 {[%emt 0:00:00]} 56. Ke3 {[%emt 0:00:00]} e4 {[%emt 0:00:00]} 57. Ke2 {[%emt 0:00:00]} Kc4 {[%emt 0:00:00]} 58. Ke3 {[%emt 0:00:00]} Kb4 {[%emt 0:00:00]} 59. Kxe4 {[%emt 0:00:00]} Kxa4 {[%emt 0:00:00]} 60. Kd3 {[%emt 0:00:00]} Kb3 {[%emt 0:00:00]} 61. Kd2 {[%emt 0:00:00]} Kb2 {[%emt 0:00:00]} 0-1

[Event "FIDE World Cup O10-TB 2024"]
[Site "Batumi"]
[Date "2024.07.01"]
[Round "1.16"]
[White "Kazimzade, Mahammad"]
[Black "Ismailov, Omarbek"]
[Result "1-0"]
[ECO "B22"]
[WhiteElo "1594"]
[BlackElo "1716"]
[Annotator "NA RC"]
[PlyCount "51"]
[EventDate "2024.06.23"]
[EventType "swiss"]
[EventCountry "GEO"]
[SourceTitle "playchess.com"]
[Source "ChessBase"]
[SourceQuality "1"]
[TimeControl "5400+30"]

1. e4 {[%emt 0:00:41]} c5 {[%emt 0:00:27]} 2. c3 {[%emt 0:00:06]} e5 {[%emt 0:00:25]} 3. Nf3 {[%emt 0:00:26]} Nc6 {[%emt 0:02:08]} 4. d4 {[%emt 0:02:56]} cxd4 {[%emt 0:01:44]} 5. cxd4 {[%emt 0:00:20]} exd4 {[%emt 0:00:35]} 6. Nxd4 {[%emt 0:00:11]} Bc5 {[%emt 0:04:55]} 7. Nxc6 {[%emt 0:03:17]} Qf6 {[%emt 0:02:55]} 8. Qc2 {[%emt 0:03:05]} Qxc6 {[%emt 0:00:31]} 9. Nc3 {[%emt 0:01:13]} Bb4 {[%emt 0:01:32]} 10. Bd2 {[%emt 0:00:55]} Ne7 {[%emt 0:11:32]} 11. Bd3 {[%emt 0:02:10]} b6 {[%emt 0:07:33]} 12. O-O {[%emt 0:03:08]} O-O {[%emt 0:00:27]} 13. Rac1 {[%emt 0:01:47]} Bb7 {[%emt 0:00:29]} 14. Qb3 {[%emt 0:06:05]} Bxc3 {[%emt 0:08:04]} 15. Bxc3 {[%emt 0:00:12]} Qg6 {[%emt 0:00:23]} 16. f4 {[%emt 0:02:55]} Nf5 {[%emt 0:07:08]} 17. Rf3 {[%emt 0:02:57]} Qh5 {[%emt 0:06:02]} 18. Rh3 {[%emt 0:00:42]} Qg4 {[%emt 0:01:59]} 19. Qc2 {[%emt 0:00:38]} Qxf4 {[%emt 0:10:19]} 20. exf5 {[%emt 0:00:34]} f6 {[%emt 0:00:27]} 21. Rf1 {[%emt 0:00:39]} Qd6 {[%emt 0:02:36]} 22. Qe2 {[%emt 0:01:21]} Qc6 {[%emt 0:00:58]} 23. Rd1 {[%emt 0:01:01]} Rae8 {[%emt 0:00:34]} 24. Qg4 {[%emt 0:01:11]} Qc5+ {[%emt 0:02:19]} 25. Kh1 {[%emt 0:02:10]} Qf2 {[%emt 0:01:22]} 26. Rf1 {[%emt 0:02:18]} 1-0

[Event "FIDE World Cup O10-TB 2024"]
[Site "Batumi"]
[Date "2024.07.01"]
[Round "1.18"]
[White "Makhsatuly, Rakhim"]
[Black "TURKI, YOUSEF HATTAN A"]
[Result "1-0"]
[ECO "C08"]
[WhiteElo "1630"]
[BlackElo "1401"]
[Annotator "NA RC"]
[PlyCount "55"]
[EventDate "2024.06.23"]
[EventType "swiss"]
[EventCountry "GEO"]
[SourceTitle "playchess.com"]
[Source "ChessBase"]
[SourceQuality "1"]
[TimeControl "5400+30"]

1. e4 {[%emt 0:00:02]} e6 {[%emt 0:00:07]} 2. d4 {[%emt 0:00:01]} d5 {[%emt 0:00:09]} 3. Nd2 {[%emt 0:00:03]} c5 {[%emt 0:00:23]} 4. exd5 {[%emt 0:00:05]} exd5 {[%emt 0:00:09]} 5. Bb5+ {[%emt 0:00:05]} Nc6 {[%emt 0:00:21]} 6. Ngf3 {[%emt 0:00:06]} Nf6 {[%emt 0:00:10]} 7. O-O {[%emt 0:00:26]} Be7 {[%emt 0:00:28]} 8. dxc5 {[%emt 0:01:20]} Bxc5 {[%emt 0:00:08]} 9. Nb3 {[%emt 0:00:14]} Be7 {[%emt 0:00:23]} 10. Re1 {[%emt 0:02:24]} O-O {[%emt 0:00:23]} 11. c3 {[%emt 0:00:41]} a6 {[%emt 0:00:53]} 12. Bd3 {[%emt 0:00:57]} Bg4 {[%emt 0:00:22]} 13. Be3 {[%emt 0:01:13]} Qc7 {[%emt 0:01:17]} 14. Nbd4 {[%emt 0:00:43]} Bd6 {[%emt 0:01:40]} 15. h3 {[%emt 1:29:40]} Bh5 {[%emt 0:00:49]} 16. Qc2 {[%emt 0:00:00]} h6 {[%emt 0:00:50]} 17. Qd2 {[%emt 0:00:00]} Bg6 {[%emt 0:01:32]} 18. Bxg6 {[%emt 0:01:30]} fxg6 {[%emt 0:00:16]} 19. Ne6 {[%emt 0:00:00]} Qd7 {[%emt 0:02:24]} 20. Nxf8 {[%emt 0:00:00]} Bxf8 {[%emt 0:00:23]} 21. Nd4 {[%emt 0:00:00]} Ne4 {[%emt 0:01:51]} 22. Qc2 {[%emt 0:00:00]} Nxd4 {[%emt 0:01:03]} 23. Bxd4 {[%emt 0:00:00]} Bd6 {[%emt 0:02:28]} 24. Qb3 {[%emt 0:00:00]} Rf8 {[%emt 0:01:01]} 25. Qxd5+ {[%emt 0:00:00]} Kh7 {[%emt 0:04:39]} 26. Qxe4 {[%emt 0:00:00]} Bb8 {[%emt 0:01:37]} 27. Qe7 {[%emt 0:00:00]} Qxe7 {[%emt 0:01:09]} 28. Rxe7 {[%emt 0:00:00]} 1-0